[Event "18th Charleroi Open-B 2019"]
[Site "Charleroi"]
[Date "2019.07.27"]
[Round "1.1"]
[White "Halfaoui, Eddine"]
[Black "Fox, Pierre"]
[Result "1-0"]
[ECO "D02"]
[WhiteElo "1990"]
[BlackElo "1727"]
[Annotator "NA RC"]
[PlyCount "43"]
[EventDate "2019.07.22"]
[EventType "swiss"]
[EventCountry "BEL"]
[SourceTitle "playchess.com"]
[Source "ChessBase"]
[SourceQuality "1"]
[TimeControl "40/5400+30:1800+30"]

1. d4 {[%emt 0:00:00]} Nf6 {[%emt 0:00:00]} 2. Nf3 {[%emt 0:00:00]} d5 {[%emt 0:00:00]} 3. g3 {[%emt 0:00:14]} Bg4 {[%emt 0:00:30]} 4. Bg2 {[%emt 0:00:10]} e6 {[%emt 0:01:31]} 5. O-O {[%emt 0:00:09]} Nbd7 {[%emt 0:00:39]} 6. Bf4 {[%emt 0:02:19]} Be7 {[%emt 0:02:09]} 7. c4 {[%emt 0:00:56]} O-O {[%emt 0:01:12]} 8. Ne5 {[%emt 0:01:44]} Bh5 {[%emt 0:04:16]} 9. Nc3 {[%emt 0:00:15]} c6 {[%emt 0:00:11]} 10. Rc1 {[%emt 0:03:08]} Nxe5 {[%emt 0:01:07]} 11. dxe5 {[%emt 0:00:10]} Nd7 {[%emt 0:00:17]} 12. cxd5 {[%emt 0:00:17]} exd5 {[%emt 0:01:14]} 13. Bh3 {[%emt 0:02:33]} g5 {[%emt 0:05:04]} 14. e6 {[%emt 0:01:19]} gxf4 {[%emt 0:03:37]} 15. exd7 {[%emt 0:00:23]} fxg3 {[%emt 0:01:12]} 16. hxg3 {[%emt 0:00:14]} f5 {[%emt 0:01:12]} 17. Nxd5 {[%emt 0:16:09]} Bf7 {[%emt 0:20:01]} 18. Nxe7+ {[%emt 0:03:21]} Qxe7 {[%emt 0:00:08]} 19. Bxf5 {[%emt 0:00:22]} Bxa2 {[%emt 0:00:33]} 20. e4 {[%emt 0:00:49]} Be6 {[%emt 0:02:21]} 21. Qg4+ {[%emt 0:00:15]} Kh8 {[%emt 0:00:42]} 22. Bxe6 {[%emt 1:06:13]} 1-0

[Event "18th Charleroi Open-B 2019"]
[Site "Charleroi"]
[Date "2019.07.27"]
[Round "1.4"]
[White "Ooghe, Jean-Marie"]
[Black "Gorts, Sven"]
[Result "1/2-1/2"]
[ECO "D00"]
[WhiteElo "1724"]
[BlackElo "1934"]
[Annotator "NA RC"]
[PlyCount "123"]
[EventDate "2019.07.22"]
[EventType "swiss"]
[EventCountry "BEL"]
[SourceTitle "playchess.com"]
[Source "ChessBase"]
[SourceQuality "1"]
[TimeControl "40/5400+30:1800+30"]

1. d4 {[%emt 0:00:00]} d5 {[%emt 0:00:25]} 2. e3 {[%emt 0:00:00]} Nf6 {[%emt 0:00:35]} 3. Bd3 {[%emt 0:00:10]} c5 {[%emt 0:01:31]} 4. c3 {[%emt 0:00:50]} Nc6 {[%emt 0:00:38]} 5. f4 {[%emt 0:01:50]} Qb6 {[%emt 0:05:55]} 6. Nf3 {[%emt 0:01:40]} c4 {[%emt 0:06:19]} 7. Bc2 {[%emt 0:00:24]} Qa5 {[%emt 0:02:47]} 8. O-O {[%emt 0:01:52]} g6 {[%emt 0:08:12]} 9. Nbd2 {[%emt 0:04:54]} Bf5 {[%emt 0:00:59]} 10. e4 {[%emt 0:09:39]} Nxe4 {[%emt 0:00:43]} 11. Nxe4 {[%emt 0:00:58]} Bxe4 {[%emt 0:00:12]} 12. Bxe4 {[%emt 0:00:23]} dxe4 {[%emt 0:00:07]} 13. Ng5 {[%emt 0:00:30]} Qd5 {[%emt 0:02:23]} 14. b3 {[%emt 0:07:26]} h6 {[%emt 0:03:56]} 15. bxc4 {[%emt 0:00:39]} Qxc4 {[%emt 0:01:24]} 16. Nxe4 {[%emt 0:04:31]} f5 {[%emt 0:01:13]} 17. d5 {[%emt 0:04:40]} Rd8 {[%emt 0:06:03]} 18. Qb3 {[%emt 0:06:36]} Na5 {[%emt 0:02:39]} 19. Qxc4 {[%emt 0:03:16]} Nxc4 {[%emt 0:00:11]} 20. Nc5 {[%emt 0:00:54]} Rxd5 {[%emt 0:00:39]} 21. Ne6 {[%emt 0:01:46]} Kf7 {[%emt 0:00:55]} 22. Re1 {[%emt 0:02:29]} Rd6 {[%emt 0:01:10]} 23. Nxf8 {[%emt 0:02:11]} Rxf8 {[%emt 0:00:21]} 24. Rb1 {[%emt 0:00:16]} b6 {[%emt 0:02:05]} 25. Be3 {[%emt 0:06:50]} Rd3 {[%emt 0:01:24]} 26. Bd4 {[%emt 0:00:27]} Rd2 {[%emt 0:01:50]} 27. Rb4 {[%emt 0:03:21]} Rc8 {[%emt 0:03:45]} 28. a4 {[%emt 0:02:24]} Na3 {[%emt 0:03:49]} 29. Rb3 {[%emt 0:07:47]} Nc2 {[%emt 0:02:07]} 30. Rb2 {[%emt 0:04:53]} Rxg2+ {[%emt 0:01:39]} 31. Kxg2 {[%emt 0:00:05]} Nxe1+ {[%emt 0:00:08]} 32. Kg3 {[%emt 0:00:36]} Nd3 {[%emt 0:01:50]} 33. Rb5 {[%emt 0:00:58]} Nc5 {[%emt 0:01:32]} 34. Kg2 {[%emt 0:10:58]} Nxa4 {[%emt 0:00:52]} 35. Rb3 {[%emt 0:01:33]} Nc5 {[%emt 0:02:36]} 36. Ra3 {[%emt 0:01:20]} Nd3 {[%emt 0:02:05]} 37. Rxa7 {[%emt 0:01:39]} Nxf4+ {[%emt 0:00:12]} 38. Kf3 {[%emt 0:00:53]} Nd5 {[%emt 0:00:42]} 39. Rd7 {[%emt 0:01:44]} Ke6 {[%emt 0:01:16]} 40. Rb7 {[%emt 0:00:18]} Rc6 {[%emt 0:00:47]} 41. Rb8 {[%emt 0:30:34]} Nxc3 {[%emt 0:31:16]} 42. Bxb6 {[%emt 0:01:06]} Kd5 {[%emt 0:02:13]} 43. Ba5 {[%emt 0:02:35]} e5 {[%emt 0:00:56]} 44. Rd8+ {[%emt 0:00:10]} Kc4 {[%emt 0:00:11]} 45. Bxc3 {[%emt 0:02:04]} Kxc3 {[%emt 0:01:49]} 46. Rd1 {[%emt 0:01:00]} Re6 {[%emt 0:00:36]} 47. h4 {[%emt 0:00:16]} g5 {[%emt 0:00:25]} 48. h5 {[%emt 0:00:00]} e4+ {[%emt 0:00:00]} 49. Ke2 {[%emt 0:00:00]} f4 {[%emt 0:00:00]} 50. Rd8 {[%emt 0:00:00]} g4 {[%emt 0:00:00]} 51. Rg8 {[%emt 0:00:00]} g3 {[%emt 0:00:00]} 52. Rg6 {[%emt 0:00:00]} g2 {[%emt 0:00:00]} 53. Kf2 {[%emt 0:00:00]} Re5 {[%emt 0:00:00]} 54. Rxg2 {[%emt 0:00:00]} Rxh5 {[%emt 0:00:00]} 55. Rg4 {[%emt 0:00:00]} e3+ {[%emt 0:00:00]} 56. Ke2 {[%emt 0:00:00]} Rf5 {[%emt 0:00:00]} 57. Rg1 {[%emt 0:00:00]} h5 {[%emt 0:00:00]} 58. Rd1 {[%emt 0:00:00]} h4 {[%emt 0:00:00]} 59. Kf3 {[%emt 0:00:00]} h3 {[%emt 0:00:00]} 60. Rh1 {[%emt 0:00:00]} Rg5 {[%emt 0:00:00]} 61. Kxf4 {[%emt 0:00:00]} Rh5 {[%emt 0:00:00]} 62. Kxe3 {[%emt 0:00:00]} 1/2-1/2

[Event "18th Charleroi Open-B 2019"]
[Site "Charleroi"]
[Date "2019.07.27"]
[Round "1.5"]
[White "Pattyn, Luc"]
[Black "Depouhon, Jean"]
[Result "1-0"]
[ECO "A00"]
[WhiteElo "1717"]
[BlackElo "1920"]
[Annotator "NA RC"]
[PlyCount "79"]
[EventDate "2019.07.22"]
[EventType "swiss"]
[EventCountry "BEL"]
[SourceTitle "playchess.com"]
[Source "ChessBase"]
[SourceQuality "1"]
[TimeControl "40/5400+30:1800+30"]

1. e4 {[%emt 0:00:00]} d5 {[%emt 0:00:00]} 2. Nc3 {[%emt 0:00:00]} d4 {[%emt 0:00:48]} 3. Nce2 {[%emt 0:00:02]} Nc6 {[%emt 0:00:38]} 4. d3 {[%emt 0:00:16]} e5 {[%emt 0:01:24]} 5. f4 {[%emt 0:00:36]} Bb4+ {[%emt 0:05:04]} 6. Bd2 {[%emt 0:01:12]} exf4 {[%emt 0:00:59]} 7. Nxf4 {[%emt 0:01:38]} Nf6 {[%emt 0:01:48]} 8. Be2 {[%emt 0:01:27]} Qd6 {[%emt 0:03:52]} 9. Ngh3 {[%emt 0:01:56]} g5 {[%emt 0:10:24]} 10. Nh5 {[%emt 0:06:37]} Bxd2+ {[%emt 0:06:07]} 11. Qxd2 {[%emt 0:01:08]} Bxh3 {[%emt 0:01:48]} 12. gxh3 {[%emt 0:02:49]} Nxh5 {[%emt 0:02:50]} 13. Bxh5 {[%emt 0:00:12]} Qh6 {[%emt 0:15:02]} 14. Bg4 {[%emt 0:04:18]} Qh4+ {[%emt 0:02:11]} 15. Qf2 {[%emt 0:01:07]} Qxf2+ {[%emt 0:00:31]} 16. Kxf2 {[%emt 0:00:03]} Ne7 {[%emt 0:05:18]} 17. c3 {[%emt 0:02:41]} h5 {[%emt 0:00:37]} 18. Be2 {[%emt 0:02:00]} O-O-O {[%emt 0:01:19]} 19. Rac1 {[%emt 0:01:27]} Ng6 {[%emt 0:04:13]} 20. cxd4 {[%emt 0:00:40]} Rxd4 {[%emt 0:00:53]} 21. Rc5 {[%emt 0:00:27]} Nf4 {[%emt 0:01:54]} 22. Ke3 {[%emt 0:01:14]} Rhd8 {[%emt 0:10:24]} 23. Rd1 {[%emt 0:04:32]} f6 {[%emt 0:02:49]} 24. Rf5 {[%emt 0:00:47]} R4d6 {[%emt 0:01:56]} 25. Bf1 {[%emt 0:04:01]} Kd7 {[%emt 0:03:46]} 26. h4 {[%emt 0:01:39]} Rg8 {[%emt 0:01:51]} 27. hxg5 {[%emt 0:00:26]} fxg5 {[%emt 0:00:47]} 28. h4 {[%emt 0:00:58]} Ne6 {[%emt 0:01:20]} 29. hxg5 {[%emt 0:03:33]} Rxg5 {[%emt 0:01:17]} 30. Rxg5 {[%emt 0:01:14]} Nxg5 {[%emt 0:00:07]} 31. Be2 {[%emt 0:00:39]} Rh6 {[%emt 0:01:51]} 32. Rh1 {[%emt 0:00:29]} h4 {[%emt 0:01:07]} 33. Bg4+ {[%emt 0:00:43]} Ne6 {[%emt 0:01:52]} 34. d4 {[%emt 0:01:13]} Ke7 {[%emt 0:01:11]} 35. e5 {[%emt 0:02:31]} Ng5 {[%emt 0:02:18]} 36. Kf4 {[%emt 0:03:54]} Nf7 {[%emt 0:01:39]} 37. Rh3 {[%emt 0:01:43]} Ra6 {[%emt 0:01:57]} 38. a3 {[%emt 0:02:12]} Ra4 {[%emt 0:01:27]} 39. b4 {[%emt 0:00:55]} a5 {[%emt 0:00:32]} 40. Bd1 {[%emt 0:00:21]} 1-0

[Event "18th Charleroi Open-B 2019"]
[Site "Charleroi"]
[Date "2019.07.28"]
[Round "2.1"]
[White "Caufriez, Olivier"]
[Black "Halfaoui, Eddine"]
[Result "0-1"]
[ECO "C01"]
[WhiteElo "1782"]
[BlackElo "1990"]
[Annotator "NA"]
[PlyCount "74"]
[EventDate "2019.07.22"]
[EventType "swiss"]
[EventCountry "BEL"]
[SourceTitle "playchess.com"]
[Source "ChessBase"]
[SourceQuality "1"]
[TimeControl "40/5400+30:1800+30"]

1. e4 {[%emt 0:08:27]} e6 {[%emt 0:00:00]} 2. d4 {[%emt 0:00:23]} d5 {[%emt 0:00:00]} 3. exd5 {[%emt 0:00:43]} exd5 {[%emt 0:00:00]} 4. c4 {[%emt 0:00:19]} Be6 {[%emt 0:00:07]} 5. Nc3 {[%emt 0:00:41]} Nc6 {[%emt 0:02:22]} 6. Nf3 {[%emt 0:03:15]} Bb4 {[%emt 0:02:03]} 7. Ng5 {[%emt 0:15:17]} Qf6 {[%emt 0:04:00]} 8. Be3 {[%emt 0:04:47]} O-O-O {[%emt 0:03:59]} 9. Nxe6 {[%emt 0:02:07]} fxe6 {[%emt 0:00:41]} 10. cxd5 {[%emt 0:03:56]} exd5 {[%emt 0:02:15]} 11. Qg4+ {[%emt 0:01:29]} Kb8 {[%emt 0:00:15]} 12. Bd3 {[%emt 0:01:39]} Nge7 {[%emt 0:02:11]} 13. O-O {[%emt 0:02:41]} h5 {[%emt 0:00:18]} 14. Qf3 {[%emt 0:14:05]} Qxf3 {[%emt 0:00:46]} 15. gxf3 {[%emt 0:00:06]} Rhf8 {[%emt 0:06:27]} 16. Kg2 {[%emt 0:00:20]} Nf5 {[%emt 0:01:43]} 17. Bxf5 {[%emt 0:05:32]} Rxf5 {[%emt 0:00:03]} 18. a3 {[%emt 0:00:37]} Bxc3 {[%emt 0:02:19]} 19. bxc3 {[%emt 0:00:08]} Na5 {[%emt 0:00:05]} 20. a4 {[%emt 0:01:10]} Nc4 {[%emt 0:00:11]} 21. Rfb1 {[%emt 0:00:46]} a6 {[%emt 0:00:28]} 22. Re1 {[%emt 0:01:25]} g5 {[%emt 0:00:58]} 23. Rg1 {[%emt 0:00:56]} Rdf8 {[%emt 0:01:12]} 24. Kh1 {[%emt 0:00:28]} Rxf3 {[%emt 0:00:16]} 25. Rxg5 {[%emt 0:00:27]} R3f5 {[%emt 0:07:26]} 26. Rag1 {[%emt 0:01:42]} Nb2 {[%emt 0:01:07]} 27. h4 {[%emt 0:05:51]} Kc8 {[%emt 0:04:58]} 28. Ra1 {[%emt 0:16:15]} b6 {[%emt 0:03:04]} 29. a5 {[%emt 0:01:21]} b5 {[%emt 0:00:34]} 30. Rag1 {[%emt 0:00:53]} Nc4 {[%emt 0:00:09]} 31. Ra1 {[%emt 0:01:48]} Rxg5 {[%emt 0:01:15]} 32. hxg5 {[%emt 0:00:12]} Kd7 {[%emt 0:00:10]} 33. Kh2 {[%emt 0:00:38]} Ke6 {[%emt 0:00:08]} 34. Kh3 {[%emt 0:00:10]} Kf5 {[%emt 0:00:57]} 35. Kh4 {[%emt 0:00:07]} Kg6 {[%emt 0:00:12]} 36. Ra2 {[%emt 0:00:47]} Rf3 {[%emt 0:00:26]} 37. Ra1 {[%emt 0:00:28]} Nd6 {[%emt 0:00:37]} 0-1

[Event "18th Charleroi Open-B 2019"]
[Site "Charleroi"]
[Date "2019.07.28"]
[Round "2.3"]
[White "Gorts, Sven"]
[Black "Manafov, Rafail"]
[Result "1-0"]
[ECO "E91"]
[WhiteElo "1934"]
[BlackElo "1773"]
[Annotator "NA RC"]
[PlyCount "62"]
[EventDate "2019.07.22"]
[EventType "swiss"]
[EventCountry "BEL"]
[SourceTitle "playchess.com"]
[Source "ChessBase"]
[SourceQuality "1"]
[TimeControl "40/5400+30:1800+30"]

1. e4 {[%emt 0:00:00]} g6 {[%emt 0:02:36]} 2. d4 {[%emt 0:00:00]} Bg7 {[%emt 0:00:22]} 3. c4 {[%emt 0:00:23]} d6 {[%emt 0:00:10]} 4. Nc3 {[%emt 0:00:27]} Nf6 {[%emt 0:01:02]} 5. Nf3 {[%emt 1:31:40]} O-O {[%emt 1:28:20]} 6. Be2 {[%emt 0:00:55]} Bg4 {[%emt 0:01:00]} 7. Be3 {[%emt 0:02:58]} h6 {[%emt 0:06:40]} 8. h3 {[%emt 0:01:10]} Bxf3 9. Bxf3 {[%emt 0:00:10]} c6 {[%emt 1:22:24]} 10. Qd2 {[%emt 0:01:38]} Kh7 {[%emt 1:19:43]} 11. g4 {[%emt 0:00:52]} e5 {[%emt 0:05:56]} 12. d5 {[%emt 0:01:43]} c5 {[%emt 0:02:09]} 13. g5 {[%emt 0:01:42]} Ng8 {[%emt 0:00:36]} 14. gxh6 {[%emt 0:02:21]} Nxh6 {[%emt 0:00:18]} 15. h4 {[%emt 0:00:28]} f5 {[%emt 0:06:50]} 16. Bg5 {[%emt 0:00:17]} Qe8 {[%emt 0:11:09]} 17. h5 {[%emt 0:02:05]} f4 {[%emt 0:01:09]} 18. hxg6+ {[%emt 0:01:49]} Qxg6 {[%emt 0:00:19]} 19. Be7 {[%emt 0:01:11]} Re8 {[%emt 0:01:57]} 20. Bh4 {[%emt 0:02:46]} Bf6 {[%emt 0:03:26]} 21. O-O-O {[%emt 1:16:18]} Rg8 {[%emt 0:03:45]} 22. Qe2 {[%emt 0:03:35]} Bxh4 {[%emt 0:00:52]} 23. Rxh4 {[%emt 0:00:15]} Qf6 {[%emt 0:14:05]} 24. Rdh1 {[%emt 0:02:13]} Rg1+ {[%emt 0:00:29]} 25. Rxg1 {[%emt 0:02:45]} Qxh4 {[%emt 0:00:06]} 26. Nb5 {[%emt 1:08:30]} Qe7 {[%emt 0:00:26]} 27. Bh5 {[%emt 0:02:08]} f3 {[%emt 0:34:31]} 28. Qxf3 {[%emt 0:01:58]} Na6 {[%emt 0:00:53]} 29. Bg6+ {[%emt 0:01:29]} Kh8 {[%emt 0:00:37]} 30. Qh5 {[%emt 0:00:55]} Qf8 {[%emt 0:00:25]} 31. Bf5 {[%emt 0:01:51]} Nb8 {[%emt 0:22:53]} 1-0

[Event "18th Charleroi Open-B 2019"]
[Site "Charleroi"]
[Date "2019.07.29"]
[Round "3.1"]
[White "Halfaoui, Eddine"]
[Black "Solovyova, Anastasia"]
[Result "0-1"]
[ECO "A88"]
[WhiteElo "1990"]
[BlackElo "1835"]
[Annotator "NA"]
[PlyCount "84"]
[EventDate "2019.07.22"]
[EventType "swiss"]
[EventCountry "BEL"]
[SourceTitle "playchess.com"]
[Source "ChessBase"]
[SourceQuality "1"]
[TimeControl "40/5400+30:1800+30"]

1. d4 {[%emt 0:00:00]} f5 {[%emt 0:00:00]} 2. Nf3 {[%emt 0:00:00]} Nf6 {[%emt 0:00:01]} 3. g3 {[%emt 0:00:43]} g6 {[%emt 0:00:33]} 4. Bg2 {[%emt 0:00:04]} Bg7 {[%emt 0:00:11]} 5. O-O {[%emt 0:00:14]} O-O {[%emt 0:00:36]} 6. c4 {[%emt 0:01:20]} d6 {[%emt 0:03:53]} 7. Nc3 {[%emt 0:00:19]} c6 {[%emt 0:02:20]} 8. d5 {[%emt 0:04:06]} e5 {[%emt 0:19:18]} 9. dxe6 {[%emt 0:05:10]} Bxe6 {[%emt 0:04:33]} 10. Qa4 {[%emt 0:00:29]} Nbd7 {[%emt 0:06:03]} 11. Ng5 {[%emt 0:11:31]} Qe7 {[%emt 0:05:11]} 12. Nxe6 {[%emt 0:04:58]} Qxe6 {[%emt 0:00:07]} 13. Qb4 {[%emt 0:00:40]} Nc5 {[%emt 0:01:53]} 14. Be3 {[%emt 0:01:00]} a5 {[%emt 0:02:05]} 15. Qa3 {[%emt 0:01:04]} Qxc4 {[%emt 0:05:27]} 16. Rac1 {[%emt 0:00:17]} Qb4 {[%emt 0:01:14]} 17. Bxc5 {[%emt 0:00:31]} dxc5 {[%emt 0:00:22]} 18. Na4 {[%emt 0:00:18]} Ne4 {[%emt 0:05:52]} 19. Bxe4 {[%emt 0:01:34]} fxe4 {[%emt 0:06:34]} 20. Qb3+ {[%emt 0:08:57]} c4 {[%emt 0:02:44]} 21. Qxb4 {[%emt 0:00:26]} axb4 {[%emt 0:00:05]} 22. b3 {[%emt 0:04:05]} c3 {[%emt 0:02:51]} 23. Rc2 {[%emt 0:00:19]} Bd4 {[%emt 0:01:16]} 24. e3 {[%emt 0:00:10]} Ba7 {[%emt 0:00:26]} 25. Rd1 {[%emt 0:00:51]} b5 {[%emt 0:00:20]} 26. Nxc3 {[%emt 0:00:16]} bxc3 {[%emt 0:00:13]} 27. Rxc3 {[%emt 0:00:01]} c5 {[%emt 0:00:47]} 28. Rd6 {[%emt 0:01:38]} Rfd8 {[%emt 0:01:34]} 29. Ra6 {[%emt 0:03:26]} Kf7 {[%emt 0:03:07]} 30. b4 {[%emt 0:01:42]} c4 {[%emt 0:09:04]} 31. a4 {[%emt 0:00:27]} Rd1+ {[%emt 0:00:27]} 32. Kg2 {[%emt 0:00:01]} Bd4 {[%emt 0:00:48]} 33. Rxa8 {[%emt 0:07:37]} Bxc3 {[%emt 0:00:11]} 34. axb5 {[%emt 0:00:11]} Rb1 {[%emt 0:01:48]} 35. Ra7+ {[%emt 0:00:42]} Kf6 {[%emt 0:00:22]} 36. b6 {[%emt 0:03:27]} Rxb4 {[%emt 0:00:39]} 37. Rc7 {[%emt 0:00:11]} Be5 {[%emt 0:00:43]} 38. Rc6+ {[%emt 0:00:24]} Ke7 {[%emt 0:00:22]} 39. b7 {[%emt 0:01:14]} c3 {[%emt 0:01:44]} 40. Rc5 {[%emt 0:00:51]} Kd6 {[%emt 0:00:29]} 41. Rc4 {[%emt 0:30:58]} Rxb7 {[%emt 0:30:05]} 42. Rxe4 {[%emt 0:00:09]} c2 {[%emt 0:00:14]} 0-1

[Event "18th Charleroi Open-B 2019"]
[Site "Charleroi"]
[Date "2019.07.29"]
[Round "3.3"]
[White "Lefebvre, Jeremie"]
[Black "Gorts, Sven"]
[Result "0-1"]
[ECO "B76"]
[WhiteElo "1803"]
[BlackElo "1934"]
[Annotator "NA"]
[PlyCount "43"]
[EventDate "2019.07.22"]
[EventType "swiss"]
[EventCountry "BEL"]
[SourceTitle "playchess.com"]
[Source "ChessBase"]
[SourceQuality "1"]
[TimeControl "40/5400+30:1800+30"]

1. e4 {[%emt 0:00:00]} c5 {[%emt 0:00:00]} 2. Nf3 {[%emt 0:00:00]} d6 {[%emt 0:00:02]} 3. d4 {[%emt 0:00:00]} cxd4 {[%emt 0:00:17]} 4. Nxd4 {[%emt 0:00:00]} Nf6 {[%emt 0:00:14]} 5. Nc3 {[%emt 0:00:00]} g6 {[%emt 0:00:09]} 6. Be3 {[%emt 0:01:28]} Bg7 {[%emt 0:00:15]} 7. f3 {[%emt 0:01:15]} O-O {[%emt 0:00:16]} 8. Qd2 {[%emt 0:01:20]} Nc6 {[%emt 0:00:20]} 9. O-O-O {[%emt 0:01:49]} Nxd4 {[%emt 0:02:14]} 10. Bxd4 {[%emt 0:00:06]} Be6 {[%emt 0:00:13]} 11. Kb1 {[%emt 0:00:46]} Rc8 {[%emt 0:05:25]} 12. h4 {[%emt 0:07:04]} Qa5 {[%emt 0:21:27]} 13. Nd5 {[%emt 0:09:54]} Qd8 {[%emt 0:16:36]} 14. Nxf6+ {[%emt 0:05:13]} exf6 {[%emt 0:00:20]} 15. g4 {[%emt 0:10:11]} d5 {[%emt 0:03:25]} 16. Bd3 {[%emt 0:08:55]} dxe4 {[%emt 0:03:33]} 17. Bxe4 {[%emt 0:00:13]} Qe7 {[%emt 0:02:10]} 18. g5 {[%emt 0:04:21]} Rfd8 {[%emt 0:04:14]} 19. Qe3 {[%emt 0:13:39]} Rxd4 {[%emt 0:03:51]} 20. Rxd4 {[%emt 0:14:36]} f5 {[%emt 0:00:46]} 21. Bd5 {[%emt 0:05:10]} Qc5 {[%emt 0:03:00]} 22. Bxe6 {[%emt 0:11:52]} 0-1

[Event "18th Charleroi Open-B 2019"]
[Site "Charleroi"]
[Date "2019.07.29"]
[Round "4.1"]
[White "Gorts, Sven"]
[Black "Alessi, David"]
[Result "1-0"]
[ECO "C10"]
[WhiteElo "1934"]
[BlackElo "1798"]
[Annotator "NA"]
[PlyCount "119"]
[EventDate "2019.07.22"]
[EventType "swiss"]
[EventCountry "BEL"]
[SourceTitle "playchess.com"]
[Source "ChessBase"]
[SourceQuality "1"]
[TimeControl "40/5400+30:1800+30"]

1. e4 {[%emt 1:30:30]} e6 {[%emt 1:30:30]} 2. d4 {[%emt 0:00:00]} d5 {[%emt 0:00:00]} 3. Nc3 {[%emt 0:00:00]} Nc6 {[%emt 0:00:00]} 4. e5 {[%emt 0:00:00]} b6 {[%emt 0:00:00]} 5. a3 {[%emt 0:00:00]} Bb7 {[%emt 0:00:00]} 6. Nf3 {[%emt 0:00:00]} Qd7 {[%emt 0:00:00]} 7. Bd3 {[%emt 0:00:00]} O-O-O {[%emt 0:00:00]} 8. Qe2 {[%emt 0:00:00]} Kb8 {[%emt 0:00:00]} 9. O-O {[%emt 0:00:00]} f6 {[%emt 0:00:00]} 10. Bf4 {[%emt 0:00:00]} g5 {[%emt 0:00:00]} 11. Bg3 {[%emt 0:00:00]} g4 {[%emt 0:00:00]} 12. Nd2 {[%emt 0:00:00]} f5 {[%emt 0:05:30]} 13. Nb3 {[%emt 0:00:00]} Be7 {[%emt 0:00:00]} 14. a4 {[%emt 0:00:00]} Bg5 {[%emt 0:00:00]} 15. f4 {[%emt 0:00:00]} gxf3 {[%emt 0:07:00]} 16. Rxf3 {[%emt 0:00:00]} h5 {[%emt 0:00:00]} 17. a5 {[%emt 0:00:00]} h4 {[%emt 0:00:00]} 18. Bf4 {[%emt 0:00:00]} Bxf4 {[%emt 0:00:00]} 19. Rxf4 {[%emt 0:00:00]} Nge7 {[%emt 0:00:00]} 20. axb6 {[%emt 0:00:00]} cxb6 {[%emt 0:00:00]} 21. Nb5 {[%emt 0:00:00]} Nc8 {[%emt 0:00:00]} 22. c3 {[%emt 0:00:00]} Rdg8 {[%emt 0:00:00]} 23. Rf2 {[%emt 0:11:00]} Rg4 {[%emt 0:00:00]} 24. Nd2 {[%emt 0:00:00]} Rhg8 {[%emt 0:00:00]} 25. Nf1 {[%emt 0:12:00]} h3 {[%emt 0:00:00]} 26. g3 {[%emt 0:00:00]} f4 {[%emt 0:12:30]} 27. Qd2 {[%emt 0:00:00]} fxg3 {[%emt 0:00:00]} 28. Nxg3 {[%emt 0:00:00]} a6 {[%emt 0:00:00]} 29. Na3 {[%emt 0:00:00]} Nxe5 {[%emt 0:00:00]} 30. dxe5 {[%emt 0:00:00]} d4 {[%emt 0:00:46]} 31. Be2 {[%emt 0:00:00]} Rxg3+ {[%emt 0:05:07]} 32. hxg3 {[%emt 0:00:00]} h2+ {[%emt 0:00:33]} 33. Rxh2 {[%emt 0:00:00]} Rxg3+ {[%emt 0:00:24]} 34. Kf2 {[%emt 0:00:00]} Rg8 {[%emt 0:03:43]} 35. Qxd4 {[%emt 0:00:00]} Qf7+ {[%emt 0:00:41]} 36. Ke1 {[%emt 0:00:00]} Qg7 {[%emt 0:01:33]} 37. Qe3 {[%emt 0:00:00]} Ne7 {[%emt 0:01:17]} 38. Rd1 {[%emt 0:18:30]} Nd5 {[%emt 0:00:57]} 39. Rxd5 {[%emt 0:00:00]} exd5 {[%emt 0:00:25]} 40. Nc2 {[%emt 0:00:00]} Re8 {[%emt 0:01:19]} 41. e6 {[%emt 0:06:22]} Rxe6 {[%emt 0:30:33]} 42. Qxe6 {[%emt 0:00:05]} Qg3+ {[%emt 0:00:05]} 43. Kd2 {[%emt 0:00:07]} Qxh2 {[%emt 0:00:10]} 44. Qxb6 {[%emt 0:00:13]} Qf4+ {[%emt 0:00:31]} 45. Qe3 {[%emt 0:00:23]} Qa4 {[%emt 0:00:59]} 46. Qd4 {[%emt 0:00:35]} Qb3 {[%emt 0:00:28]} 47. Qb4 {[%emt 0:00:59]} Qa2 {[%emt 0:03:29]} 48. Qa3 {[%emt 0:01:04]} Qxa3 {[%emt 0:01:34]} 49. Nxa3 {[%emt 0:44:12]} Kc7 {[%emt 0:00:05]} 50. Nc2 {[%emt 0:00:10]} Kb6 {[%emt 0:00:13]} 51. Bf3 {[%emt 0:00:46]} a5 {[%emt 0:00:20]} 52. Nd4 {[%emt 0:44:39]} Kc5 {[%emt 0:00:52]} 53. Bd1 {[%emt 0:01:22]} Bc8 {[%emt 0:01:19]} 54. Ba4 {[%emt 0:00:30]} Bh3 {[%emt 0:00:37]} 55. Bb5 {[%emt 0:02:47]} Bg2 {[%emt 0:00:31]} 56. Be2 {[%emt 0:00:36]} Be4 {[%emt 0:01:08]} 57. Ke3 {[%emt 0:00:21]} Bb1 {[%emt 0:00:44]} 58. Nb3+ {[%emt 0:00:29]} Kb6 {[%emt 0:00:15]} 59. Kd4 {[%emt 0:00:27]} Ba2 {[%emt 0:00:27]} 60. Nc1 {[%emt 0:00:31]} 1-0

[Event "18th Charleroi Open-B 2019"]
[Site "Charleroi"]
[Date "2019.07.29"]
[Round "4.3"]
[White "Yoro, Samuel"]
[Black "Deneyer, Frank"]
[Result "1-0"]
[ECO "E81"]
[WhiteElo "1744"]
[BlackElo "1870"]
[Annotator "NA"]
[PlyCount "65"]
[EventDate "2019.07.22"]
[EventType "swiss"]
[EventCountry "BEL"]
[SourceTitle "playchess.com"]
[Source "ChessBase"]
[SourceQuality "1"]
[TimeControl "40/5400+30:1800+30"]

1. d4 {[%emt 0:00:00]} Nf6 {[%emt 0:00:00]} 2. c4 {[%emt 0:00:00]} g6 {[%emt 0:00:00]} 3. Nc3 {[%emt 0:00:00]} Bg7 {[%emt 0:00:00]} 4. e4 {[%emt 0:00:00]} d6 {[%emt 0:00:00]} 5. f3 {[%emt 0:00:54]} O-O {[%emt 0:02:08]} 6. Be3 {[%emt 0:00:28]} c6 {[%emt 0:01:05]} 7. Qd2 {[%emt 0:00:33]} a6 {[%emt 0:00:53]} 8. a4 {[%emt 0:00:31]} b5 {[%emt 0:01:36]} 9. axb5 {[%emt 0:00:22]} Bb7 {[%emt 0:00:17]} 10. bxc6 {[%emt 0:00:57]} Nxc6 {[%emt 0:01:36]} 11. Nge2 {[%emt 0:04:08]} Nd7 {[%emt 0:02:51]} 12. Bh6 {[%emt 0:06:07]} Bxh6 {[%emt 0:05:03]} 13. Qxh6 {[%emt 0:00:06]} Nb4 {[%emt 0:00:11]} 14. Qd2 {[%emt 0:04:54]} e5 {[%emt 0:03:27]} 15. Nd5 {[%emt 0:09:23]} Nc6 {[%emt 0:03:31]} 16. h4 {[%emt 0:03:05]} f5 {[%emt 0:00:51]} 17. h5 {[%emt 0:03:24]} g5 {[%emt 0:04:06]} 18. h6 {[%emt 0:11:52]} fxe4 {[%emt 0:07:05]} 19. fxe4 {[%emt 0:19:23]} Nxd4 {[%emt 0:00:45]} 20. Nxd4 {[%emt 0:01:06]} Bxd5 {[%emt 0:00:06]} 21. cxd5 {[%emt 0:00:30]} exd4 {[%emt 0:00:08]} 22. Qxd4 {[%emt 0:02:23]} Qf6 {[%emt 0:00:02]} 23. Qxf6 {[%emt 0:00:26]} Rxf6 {[%emt 0:01:08]} 24. Rh5 {[%emt 0:02:32]} Rg6 {[%emt 0:02:49]} 25. Rxa6 {[%emt 0:00:23]} Re8 {[%emt 0:01:25]} 26. Kd2 {[%emt 0:02:47]} Nc5 {[%emt 0:01:18]} 27. Ra3 {[%emt 0:01:32]} Rxe4 {[%emt 0:06:58]} 28. Bd3 {[%emt 0:02:29]} Nxd3 {[%emt 0:00:49]} 29. Kxd3 {[%emt 0:00:05]} Rh4 {[%emt 0:00:23]} 30. Rxh4 {[%emt 0:00:35]} gxh4 {[%emt 0:00:06]} 31. Ra8+ {[%emt 0:00:17]} Kf7 {[%emt 0:00:22]} 32. Ra7+ {[%emt 0:00:01]} Kg8 {[%emt 0:00:22]} 33. Rg7+ {[%emt 0:00:06]} 1-0